bitfinex-derivatives/quotes_ETHF0:USTF0_20250816
["timestamp","ask_amount","ask_price","bid_price","bid_amount"]
[1755331854806,3.009625,4444.6,4444.1,1.4981]
[1755331854807,0.8324,4444.2,4444.1,1.4981]
[1755331855208,0.338,4444.2,4444.1,1.4981]
[1755331855407,0.8324,4444.2,4444.1,1.4981]
[1755331856405,0.8324,4444.2,4444.1,21.7153]
[1755331857401,0.8324,4444.2,4444.1,21.9724]
[1755331857605,0.8324,4444.2,4444.1,22.2361]
[1755331859208,0.338,4444.2,4444.1,22.2361]
[1755331859504,0.5869,4444.2,4444.1,22.2361]
[1755331859711,0.8324,4444.2,4444.1,22.2361]
[1755331860710,0.8324,4444.2,4444.1,1.4981]
[1755331860905,0.8324,4444.2,4444.1,22.2361]
[1755331861104,0.338,4444.2,4443.6,0.5208]
[1755331861304,3.5458,4444.2,4443.7,20.737]
[1755331861508,3.5458,4444.2,4443.8,20.737]
[1755331861704,0.2455,4444.1,4443.8,20.737]
[1755331861903,0.338,4443.9,4443.6,0.7672]
[1755331862099,0.8324,4443.7,4443.6,0.5807]
[1755331862403,0.8324,4443.7,4443.6,21.3177]
[1755331862605,0.8324,4443.7,4443.6,0.5807]
[1755331862904,0.8324,4443.7,4443.6,22.2351]
[1755331863104,0.8324,4443.7,4443.4,40.8]
[1755331863300,0.8324,4443.7,4443.6,1.4981]
[1755331864005,0.2455,4444.0,4443.6,1.4981]
[1755331864207,0.1743,4443.8,4443.7,0.3966]
[1755331864408,3.596525,4444.1,4444.0,0.5807]
[1755331864608,3.842025,4444.1,4444.0,20.737]
[1755331865810,3.347625,4444.1,4443.5,0.3966]
[1755331866012,3.347625,4444.1,4443.5,0.643]
[1755331866013,0.4092,4443.6,4443.5,0.643]
[1755331866308,0.1743,4442.7,4442.6,0.4122]
[1755331866511,0.2455,4443.0,4442.9,0.5807]
[1755331866706,0.5835,4443.1,4443.0,1.4981]
[1755331866902,0.5835,4443.1,4443.0,22.2351]
[1755331867112,0.8324,4443.1,4443.0,22.2351]
[1755331867319,0.8324,4443.1,4443.0,20.736]
[1755331867613,0.8324,4443.1,4443.0,22.2341]
[1755331869415,0.8324,4442.3,4442.2,1.4981]
[1755331869611,3.2078,4442.9,4442.8,0.8378]
[1755331869810,0.6581,4443.0,4442.9,0.9773]
[1755331870006,0.8324,4442.7,4442.6,40.8]
[1755331870208,3.5458,4442.7,4442.2,0.643]
[1755331870511,0.338,4441.1,4441.0,17.6237]
[1755331870715,3.2078,4441.6,4441.1,0.9174]
[1755331870914,3.5458,4441.6,4441.5,1.4981]
[1755331871214,4.0402,4441.6,4441.5,1.4981]
[1755331871414,4.0402,4441.6,4441.5,22.2501]
[1755331871615,4.0402,4441.6,4441.5,1.4981]
[1755331871811,4.0402,4441.6,4441.5,22.2511]
[1755331872212,4.0402,4441.6,4440.5,32.4]
[1755331872213,0.4944,4441.5,4440.7,0.45006]
[1755331872413,3.2078,4441.6,4440.6,0.9174]
[1755331872612,3.2078,4441.1,4440.7,0.9174]
[1755331872919,3.5458,4441.1,4441.0,1.4981]
[1755331873317,0.4944,4441.0,4440.9,0.3343]
[1755331873615,0.8324,4441.0,4440.9,1.4981]
[1755331874016,3.2078,4441.1,4440.9,1.4981]
[1755331874219,3.5458,4441.1,4441.0,1.4981]
[1755331874426,0.338,4441.1,4441.0,1.4981]
[1755331874817,3.2078,4441.7,4441.2,0.9174]
[1755331875020,3.5458,4441.7,4441.6,1.4981]
[1755331875224,4.0402,4441.7,4441.0,0.5208]
[1755331875419,3.667725,4441.6,4441.5,0.9773]
[1755331875721,3.842025,4441.6,4441.5,1.4981]
[1755331876325,3.009625,4441.6,4441.5,1.4981]
[1755331877922,3.009625,4441.6,4441.5,22.2911]
[1755331878130,3.009625,4441.6,4441.5,1.4981]
[1755331878422,2.612625,4441.6,4441.5,42.2981]
[1755331879021,3.461725,4441.6,4441.5,42.2981]
[1755331879216,3.708825,4441.6,4441.5,63.0961]
[1755331879421,2.949225,4441.6,4441.5,63.0961]
[1755331879824,3.461725,4441.6,4441.5,63.0961]
[1755331880523,2.949225,4441.6,4441.5,63.0961]
[1755331880925,0.1669,4441.3,4441.1,20.799]
[1755331881123,1.487,4441.2,4441.1,21.3843]
[1755331881421,1.487,4441.2,4441.1,41.7758]
[1755331881623,4.6948,4441.2,4441.1,40.8]
[1755331882527,4.6948,4441.2,4440.7,0.3905]
[1755331882726,1.487,4441.1,4441.0,0.4115]
[1755331883028,1.487,4441.1,4441.0,1.4731]
[1755331883323,1.487,4441.1,4441.0,0.9758]
[1755331883517,0.8491,4441.1,4441.0,0.2504]
[1755331883725,1.487,4440.8,4440.7,1.4731]
[1755331884018,0.3366,4440.8,4440.7,1.4731]
[1755331884219,3.3747,4441.2,4441.1,1.4731]
[1755331884525,4.0394,4441.2,4441.1,1.4731]
[1755331884725,4.6948,4441.2,4441.1,1.4731]
[1755331885327,4.6948,4441.2,4440.3,0.8878]
[1755331885522,4.6948,4441.2,4441.1,0.5853]
[1755331885723,4.6948,4441.2,4441.1,1.4731]
[1755331886024,3.2078,4441.2,4441.1,1.4731]
[1755331886329,0.5837,4441.2,4441.1,1.0826]
[1755331886627,0.6554,4441.5,4441.1,62.7176]
[1755331886817,0.992,4441.5,4441.4,0.5853]
[1755331887126,1.487,4441.5,4441.4,1.4731]
[1755331887627,0.8491,4441.5,4441.4,1.4731]
[1755331888028,1.2399,4441.5,4441.4,1.4731]
[1755331888223,1.487,4441.5,4441.4,1.4731]
[1755331888629,4.496625,4441.5,4441.4,1.4731]
[1755331890428,4.68938684,4441.5,4441.4,1.4731]
[1755331890726,3.857925,4441.5,4441.4,1.4731]
[1755331890932,3.009625,4441.5,4441.4,1.4731]
[1755331891231,3.009625,4441.5,4441.4,1.92308]
[1755331892034,2.215425,4441.5,4441.4,4.92308]
[1755331892334,2.215425,4441.5,4441.4,7.80418185]
[1755331892530,2.215425,4441.5,4441.4,48.60418185]
[1755331892922,1.818625,4441.5,4441.4,48.60418185]
[1755331893430,1.553825,4441.5,4441.4,48.60418185]
[1755331894631,1.553825,4441.5,4441.4,69.43918185]
[1755331895633,1.553825,4441.5,4441.4,48.60418185]
[1755331895833,1.553825,4441.5,4441.4,69.43218185]
[1755331896333,1.818425,4441.5,4441.4,69.43218185]
[1755331896729,1.553825,4441.5,4441.4,69.43218185]
[1755331896928,1.553825,4441.5,4441.4,48.60418185]
[1755331897124,1.553825,4441.5,4441.4,69.42718185]
[1755331900133,1.818425,4441.5,4441.4,69.42718185]
[1755331901430,1.818425,4441.5,4441.4,48.60418185]
[1755331901737,1.818425,4441.5,4441.4,69.40218185]
[1755331901738,2.232425,4441.5,4441.4,69.40218185]
[1755331901937,2.232425,4441.5,4441.4,69.39918185]
[1755331902741,3.040825,4441.5,4441.4,69.39918185]
[1755331903034,2.232425,4441.5,4441.4,69.39918185]
[1755331903634,2.065525,4441.5,4441.4,69.39918185]
[1755331903834,1.553825,4441.5,4441.4,69.39918185]
[1755331904841,1.553825,4441.5,4441.4,66.39918185]
[1755331907235,0.6786,4442.6,4442.5,1.02947]
[1755331907436,0.6786,4442.9,4442.8,0.5796]
[1755331907739,0.6786,4442.9,4442.5,20.771]
[1755331907740,0.5837,4442.6,4442.5,0.5796]
[1755331907942,1.487,4442.6,4442.5,21.3566]
[1755331908542,1.487,4442.6,4442.5,62.1566]
[1755331909045,1.487,4442.6,4442.5,62.60646]
[1755331910444,4.496625,4442.6,4442.5,62.60646]
[1755331910645,4.496625,4442.6,4442.5,62.86286]
[1755331912248,4.248725,4442.6,4442.5,62.86286]
[1755331912445,3.009625,4442.6,4442.5,62.86286]
[1755331913143,3.009625,4442.6,4442.5,65.81891776]
[1755331913443,3.009625,4442.6,4442.5,98.22891776]
[1755331917348,4.069325,4442.6,4442.5,98.22891776]
[1755331917744,3.264925,4442.6,4442.5,98.22891776]
[1755331918046,3.009625,4442.6,4442.5,98.22891776]
[1755331918243,1.2165,4443.5,4443.4,0.3481]
[1755331918441,1.4718,4443.5,4443.4,21.3448]
[1755331918846,1.4718,4443.5,4443.4,62.1448]
[1755331919644,1.4718,4443.5,4443.4,41.1481]
[1755331919845,1.4718,4443.5,4443.4,62.34688]
[1755331920045,1.4718,4443.5,4443.4,62.59458]
[1755331921046,1.2296,4443.5,4443.4,65.73351192]
[1755331921542,2.652125,4443.5,4443.4,65.73351192]
[1755331921739,1.422525,4443.5,4443.4,65.73351192]
[1755331921938,0.2553,4444.0,4443.5,2.24884]
[1755331922240,3.543,4444.7,4444.6,0.44966]
[1755331922443,0.836,4444.7,4444.6,21.79246]
[1755331922949,1.4718,4444.7,4444.6,62.59246]
[1755331924240,0.2422,4445.2,4444.7,0.2477]
[1755331924454,1.4718,4444.8,4444.7,0.5958]
[1755331924751,1.4718,4444.8,4444.7,21.3408]
[1755331925345,1.4718,4444.8,4444.7,20.745]
[1755331926153,1.4718,4444.8,4444.6,40.8]
[1755331926357,0.5938,4444.8,4444.7,20.745]
[1755331926853,0.5938,4444.8,4444.6,40.8]
[1755331927049,1.4718,4444.7,4444.6,40.8]
[1755331927249,1.4718,4444.7,4444.6,20.743]
[1755331927554,1.4718,4444.7,4444.6,20.3459]
[1755331927754,0.5938,4444.7,4444.4,3.2078]
[1755331927954,1.4718,4444.5,4444.4,3.2078]
[1755331928254,1.4718,4444.5,4444.4,64.7508]
[1755331930557,1.4718,4444.5,4444.4,64.7498]
[1755331933155,1.4718,4444.5,4444.4,61.542]
[1755331934361,1.4718,4444.5,4444.4,61.541]
[1755331935054,1.4718,4444.5,4444.4,62.1816]
[1755331936252,1.4718,4444.5,4444.4,61.541]
[1755331937463,1.4718,4444.5,4444.4,40.8]
[1755331937654,1.4718,4444.5,4444.4,61.54]
[1755331939165,1.4718,4444.5,4444.4,40.8]
[1755331939369,1.4718,4444.5,4444.4,61.54]
[1755331942360,1.4718,4444.5,4444.4,62.1513]
[1755331944469,1.4718,4444.5,4444.4,62.1503]
[1755331944670,1.4718,4444.5,4444.4,61.539]
[1755331945666,1.4718,4444.5,4444.4,62.1503]
[1755331946364,1.4565,4444.5,4444.4,62.4025]
[1755331948571,0.4206,4444.5,4444.4,62.1503]
[1755331948781,3.9845,4444.8,4444.7,1.4498]
[1755331949075,3.9845,4444.8,4444.7,22.1878]
[1755331949076,4.58548529,4444.8,4444.7,22.1878]
[1755331949273,3.97808529,4444.8,4444.7,22.1878]
[1755331949480,3.6376,4444.8,4444.7,22.1878]
[1755331950673,3.4683,4444.8,4444.7,22.1878]
[1755331950869,3.6376,4444.8,4444.7,22.1878]
[1755331951077,4.6513,4444.8,4444.7,22.1878]
[1755331951377,4.6513,4444.8,4444.7,22.1868]
[1755331951573,4.6513,4444.8,4444.7,21.9346]
[1755331952971,4.0439,4444.8,4444.7,22.1868]
[1755331953774,3.6376,4444.8,4444.7,22.1868]
[1755331954272,3.4683,4444.8,4444.7,22.1868]
[1755331954472,3.2078,4444.8,4444.7,22.1868]
[1755331955676,1.4435,4445.6,4445.5,1.1976]
[1755331955878,1.63054275,4445.6,4445.5,21.9326]
[1755331957580,1.63054275,4445.6,4445.5,61.9609]
[1755331957784,1.63054275,4445.6,4445.5,40.8]
[1755331957980,1.63054275,4445.6,4445.5,20.0745]
[1755331958177,0.2408,4445.5,4444.7,3.46]
[1755331958382,0.3372,4444.8,4444.7,0.2522]
[1755331958586,0.8375,4444.8,4444.7,20.734]
[1755331958987,0.8375,4444.8,4444.7,61.534]
[1755331959585,0.578,4444.8,4444.7,61.7862]
[1755331959785,0.578,4444.8,4444.7,62.3975]
[1755331960289,0.578,4444.8,4444.7,41.6635]
[1755331960588,0.3372,4444.8,4444.7,62.3965]
[1755331960881,0.578,4444.8,4444.7,62.3965]
[1755331961083,3.545,4445.3,4445.2,0.6589]
[1755331961290,3.97279448,4445.3,4445.2,22.1828]
[1755331961789,4.23229448,4445.3,4445.2,20.733]
[1755331962587,4.23229448,4445.3,4445.0,0.2522]
[1755331962790,0.8375,4444.8,4444.7,40.8]
[1755331962991,4.0453,4444.8,4444.7,61.532]
[1755331963291,4.0453,4444.8,4444.7,20.732]
[1755331964390,4.0453,4444.8,4444.7,20.9842]
[1755331965386,4.0453,4444.8,4444.7,21.3909]
[1755331965588,4.0453,4444.8,4444.7,0.6589]
[1755331965783,4.0453,4444.8,4444.7,1.024]
[1755331965988,3.7858,4444.8,4444.7,21.3899]
[1755331966193,3.7858,4444.8,4444.7,22.1808]
[1755331966693,3.7858,4444.8,4444.7,1.4498]
[1755331966894,3.7858,4444.8,4444.7,22.1808]
[1755331967087,3.3757,4444.8,4444.7,22.1808]
[1755331967288,3.7858,4444.8,4444.7,22.1808]
[1755331968493,3.7871,4444.8,4444.7,22.1808]
[1755331968795,3.2078,4444.8,4444.7,21.9346]
[1755331969197,3.8327,4444.8,4444.7,22.1929]
[1755331969399,3.834,4444.8,4444.7,22.1929]
[1755331969895,3.836,4444.8,4444.7,22.1929]
[1755331970996,3.836,4444.8,4444.5,40.8]
[1755331971291,3.836,4444.8,4444.1,0.6456]
[1755331971292,0.8668,4444.2,4444.1,0.6456]
[1755331971592,3.8014,4444.2,4444.1,20.729]
[1755331972095,4.0746,4444.2,4444.1,20.729]
[1755331972483,0.355,4443.7,4442.9,0.3904]
[1755331972684,0.355,4443.1,4443.0,21.5736]
[1755331972889,0.6249,4443.1,4443.0,22.2223]
[1755331973088,0.1821,4443.1,4443.0,63.0223]
[1755331974102,0.454,4443.1,4443.0,63.0223]
[1755331974393,0.1821,4443.1,4443.0,63.0223]
[1755331976389,0.6262,4443.1,4443.0,63.0223]
[1755331976992,0.6282,4443.1,4443.0,63.0243]
[1755331979803,0.6282,4443.1,4443.0,42.2933]
[1755331979998,0.8668,4443.1,4443.0,62.765]
[1755331980793,0.6282,4443.1,4443.0,63.0233]
[1755331980998,0.6282,4443.1,4443.0,42.2933]
[1755331981301,0.6282,4443.1,4443.0,63.0243]
[1755331981996,0.6282,4443.1,4443.0,41.4683]
[1755331982198,0.8655,4443.1,4443.0,20.73]
[1755331982395,0.8668,4443.1,4443.0,20.73]
[1755331983296,0.8668,4443.1,4442.6,0.26019125]
[1755331983297,0.1821,4442.7,4442.6,0.00499125]
[1755331983498,0.8668,4442.7,4442.6,20.99019125]
[1755331984798,0.8668,4442.7,4442.6,1.06369125]
[1755331985006,0.8668,4442.7,4442.6,21.79269125]
[1755331985301,0.8668,4442.7,4442.6,21.40229125]
[1755331985494,0.8668,4442.7,4442.6,21.79269125]
[1755331985694,0.8668,4442.7,4442.6,1.06369125]
[1755331985893,0.8668,4442.7,4442.6,21.79269125]
[1755331986095,0.8668,4442.7,4442.6,21.79369125]
[1755331986903,0.8668,4442.7,4442.6,1.06369125]
[1755331987203,0.8668,4442.7,4442.6,21.79369125]
[1755331988302,0.8668,4442.7,4442.6,0.67329125]
[1755331988498,4.0746,4442.7,4442.6,21.22809125]
[1755331988899,4.0746,4442.7,4442.6,0.49909125]
[1755331989099,4.0746,4442.7,4442.6,20.73499125]
[1755331991700,4.0746,4442.7,4442.6,0.00499125]
[1755331991903,7.0746,4442.7,4442.6,0.00499125]
[1755331996205,3.836,4442.7,4442.6,0.43439125]
[1755331996405,4.0746,4442.7,4442.6,1.49829125]
[1755331996713,4.0746,4442.7,4442.6,1.23999125]
[1755331997608,4.0746,4442.7,4442.6,1.06369125]
[1755331998211,4.0746,4442.7,4442.6,1.0587]
[1755331999209,4.26072153,4442.7,4442.6,1.0587]
[1755332000512,4.25581322,4442.7,4442.6,1.0587]
[1755332000805,4.25587975,4442.7,4442.6,0.6683]
[1755332001005,4.25587975,4442.7,4442.6,1.0312]
[1755332002206,4.51833332,4442.7,4442.6,1.0312]
[1755332002710,4.51833332,4442.7,4442.6,0.6683]
[1755332003111,0.1686,4441.8,4441.7,21.1497]
[1755332003308,0.413,4441.8,4441.7,22.1921]
[1755332003708,0.413,4441.8,4441.7,1.4631]
[1755332004011,0.1686,4441.8,4441.7,1.4631]
[1755332004312,0.4147,4442.0,4441.9,1.4631]
[1755332004714,0.413,4442.0,4441.9,1.4631]
[1755332004909,3.2078,4442.2,4441.9,1.4631]
[1755332005112,0.2444,4442.1,4442.0,1.2107]
[1755332005315,0.413,4442.1,4442.0,1.4631]
[1755332005615,0.5886,4442.1,4442.0,1.4631]
[1755332007707,0.5869,4442.1,4442.0,1.4631]
[1755332008715,0.5886,4442.1,4442.0,1.4631]
[1755332010322,0.5869,4442.1,4442.0,1.4631]
[1755332010511,3.2078,4442.2,4442.1,0.8793]
[1755332010715,3.2078,4442.2,4442.1,1.4631]
[1755332010716,3.39443666,4442.2,4442.1,1.4631]
[1755332011822,3.80743666,4442.2,4442.1,1.4631]
[1755332012122,3.56303666,4442.2,4442.1,1.4631]
[1755332012621,3.80743666,4442.2,4442.1,1.4631]
[1755332013926,3.98133666,4442.2,4442.1,1.4631]
[1755332014122,3.98303666,4442.2,4442.1,1.4631]
[1755332014323,4.24639617,4442.2,4442.1,1.4631]
[1755332020629,4.24639617,4442.2,4442.1,22.1851]
[1755332021124,4.24682082,4442.2,4442.1,22.1851]
[1755332021923,0.45042082,4442.2,4442.1,22.1851]
[1755332022117,3.2078,4443.0,4442.1,21.6687]
[1755332022318,1.04392788,4442.9,4442.8,0.4167]
[1755332022524,4.49582788,4442.9,4442.8,1.4631]
[1755332024023,4.25172788,4442.9,4442.8,1.4631]
[1755332025830,4.24902788,4442.9,4442.8,1.4631]
[1755332026829,4.24732788,4442.9,4442.8,1.4631]
[1755332027125,3.39647463,4442.9,4442.8,1.4631]
[1755332028024,3.2078,4443.4,4443.3,0.5838]
[1755332028220,3.2078,4443.4,4443.3,22.1771]
[1755332029131,3.2078,4443.9,4443.8,0.3362]
[1755332029321,3.4722,4443.9,4443.8,21.5748]
[1755332029526,4.6785,4443.9,4443.8,21.5748]
[1755332030227,4.6785,4443.9,4443.8,0.8608]
[1755332030722,4.6785,4443.9,4443.8,21.5738]
[1755332032129,4.6785,4443.9,4443.8,0.8608]
[1755332032334,4.6785,4443.9,4443.8,21.5708]
[1755332034630,4.1746,4443.9,4443.8,21.5708]
[1755332034831,4.6785,4443.9,4443.8,21.5708]
[1755332035028,4.6785,4443.9,4443.8,0.8608]
[1755332035233,4.6785,4443.9,4443.8,21.5678]
[1755332035831,4.6785,4443.9,4443.8,0.8608]
[1755332036134,4.6785,4443.9,4443.8,21.5678]
[1755332036635,4.6785,4443.9,4443.8,0.8608]
[1755332036837,4.6785,4443.9,4443.8,0.6909]
[1755332037134,0.6076,4443.0,4442.9,21.3051]
[1755332037329,0.9668,4443.0,4442.9,0.3362]
[1755332037535,1.4707,4443.0,4442.9,0.8608]
[1755332039028,3.2078,4443.3,4442.9,0.3362]
[1755332039229,4.0018,4443.3,4443.2,0.8608]
[1755332039432,0.2644,4443.3,4443.2,0.8608]
[1755332039737,1.1115,4443.5,4443.4,0.3362]
[1755332040034,1.1115,4443.5,4443.4,0.8608]
[1755332040230,0.6076,4443.5,4443.4,0.8608]
[1755332040436,0.3592,4443.8,4443.4,0.3362]
[1755332040636,0.3592,4443.8,4443.7,0.3362]
[1755332040637,0.9668,4443.8,4443.7,0.3362]
[1755332040829,1.4707,4443.8,4443.7,0.8608]
[1755332041030,3.2078,4443.9,4443.7,0.8608]
[1755332041031,3.2078,4443.9,4443.7,0.3362]
[1755332041239,3.2078,4443.9,4443.8,0.8608]
[1755332041429,3.4722,4443.9,4443.8,0.8608]
[1755332041636,4.6785,4443.9,4443.8,0.8608]
[1755332044338,4.1746,4443.9,4443.8,0.8608]
[1755332045437,4.6785,4443.9,4443.8,0.8608]
[1755332046138,1.4707,4443.9,4443.8,0.8608]
[1755332048634,0.3592,4444.4,4443.8,0.8608]
[1755332048835,0.794,4443.9,4443.8,21.5568]
[1755332049240,1.2979,4443.9,4443.8,21.5568]
[1755332049740,1.4707,4443.9,4443.8,21.5568]
[1755332050639,1.2152,4444.4,4444.3,0.3362]
[1755332050836,1.65120968,4444.4,4444.3,0.8608]
[1755332051038,0.78810968,4444.4,4443.9,0.5246]
[1755332051238,0.6076,4444.0,4443.9,0.8608]
[1755332051435,1.4707,4444.0,4443.9,0.8608]
[1755332051940,1.4707,4443.9,4443.8,20.694]
[1755332052244,1.4707,4443.9,4443.8,21.5548]
[1755332055051,0.9668,4443.9,4443.8,21.5548]
[1755332055240,1.4707,4443.9,4443.8,21.5548]
[1755332059158,3.2078,4444.5,4443.8,21.0302]
[1755332059351,1.93516596,4444.4,4444.3,0.3437]
[1755332059549,1.2346,4444.3,4444.2,0.8393]
[1755332059750,1.93516596,4444.3,4444.2,0.8393]
[1755332060850,1.09056596,4444.3,4444.2,0.8403]
[1755332061053,0.44116596,4444.3,4444.2,0.8403]
[1755332061246,3.2078,4444.5,4444.2,0.8403]
[1755332061445,3.5978,4444.5,4444.4,0.8403]
[1755332061646,4.03816426,4444.5,4444.4,0.8403]
[1755332061847,3.8572,4444.5,4444.4,41.6403]
[1755332062047,3.2078,4444.5,4444.4,41.6403]
[1755332063152,0.6494,4444.8,4444.7,0.3447]
[1755332063446,0.6494,4444.8,4444.7,0.8403]
[1755332063646,0.8184,4444.8,4444.7,0.8403]
[1755332063852,1.494,4444.8,4444.7,0.8403]
[1755332064249,1.494,4444.8,4444.7,21.5253]
[1755332064450,3.2078,4445.0,4444.7,21.5253]
[1755332064756,1.494,4444.9,4444.8,0.8403]
[1755332066248,3.2078,4445.0,4444.8,0.8403]
[1755332066553,3.2078,4445.0,4444.9,0.8403]
[1755332067054,4.0262,4445.0,4444.9,0.8403]
[1755332067254,4.5356,4445.0,4444.9,0.8403]
[1755332067450,3.6362,4445.0,4444.9,0.8403]
[1755332067751,4.7018,4445.0,4444.9,0.8393]
[1755332068155,4.7018,4445.0,4444.9,0.8403]
[1755332069551,4.1924,4445.0,4444.9,0.8403]
[1755332069947,3.2078,4445.0,4444.9,21.5183]
[1755332070649,1.494,4445.3,4445.2,0.3447]
[1755332070954,1.494,4445.3,4445.2,0.8403]
[1755332072754,1.0645,4445.3,4445.2,0.8403]
[1755332073058,1.494,4445.3,4445.2,0.8403]
[1755332075759,1.494,4445.3,4445.2,0.8393]
[1755332081260,1.494,4445.3,4445.2,21.5093]
[1755332087273,1.67614807,4445.3,4445.2,21.5093]
[1755332087973,1.67614807,4445.3,4445.2,21.5103]
[1755332092979,1.67614807,4445.3,4445.2,0.8403]
[1755332093181,1.67614807,4445.3,4445.2,21.5003]
[1755332093784,1.67614807,4445.3,4445.2,21.4993]
[1755332094985,1.67614807,4445.3,4445.2,21.4983]
[1755332097290,0.44154807,4445.3,4445.2,21.0017]
[1755332097484,1.67074807,4445.3,4445.2,21.4993]
[1755332101084,1.67116511,4445.3,4445.2,21.4993]
[1755332102988,3.459,4446.0,4445.9,0.1712]
[1755332103188,3.39033682,4446.0,4445.9,21.4919]
[1755332103389,3.2078,4446.0,4445.9,21.4919]
[1755332103588,0.1,4446.2,4446.1,0.3423]
[1755332103891,0.1,4446.2,4446.1,21.4909]
[1755332104485,0.1,4446.2,4446.1,62.2909]
[1755332105085,0.1,4446.2,4446.1,62.74041]
[1755332109285,0.8894,4447.0,4446.6,0.3423]
[1755332109484,0.9117,4447.0,4446.9,0.3423]
[1755332109690,1.0835,4447.0,4446.9,21.4849]
[1755332110084,1.4804,4447.0,4446.9,21.4849]
[1755332112289,0.5936,4447.1,4447.0,0.3423]
[1755332112492,0.5936,4447.1,4447.0,24.6877]
[1755332112692,0.5936,4447.1,4447.0,65.4877]
[1755332112892,1.4804,4447.1,4447.0,65.4877]
[1755332114696,0.8868,4447.7,4447.0,64.9901]
[1755332114998,1.4804,4447.7,4447.6,0.8399]
[1755332115294,1.4804,4447.7,4447.6,21.4769]
[1755332117397,0.9905,4447.7,4447.6,21.4769]
[1755332117796,1.2318,4447.7,4447.6,21.4769]
[1755332118395,1.4804,4447.7,4447.6,21.4769]
[1755332121497,0.2394,4447.6,4447.0,44.0078]
[1755332121703,1.4514,4447.1,4447.0,40.8]
[1755332122002,1.4514,4447.1,4447.0,20.63]
[1755332122893,1.4514,4447.1,4447.0,21.4721]
[1755332123096,3.2078,4447.3,4447.1,0.5155]
[1755332123302,3.5733,4447.3,4447.2,0.8421]
[1755332123502,3.2078,4447.3,4447.2,0.8421]
[1755332124000,3.8275,4447.3,4447.2,0.8421]
[1755332124200,3.2078,4447.3,4447.2,0.8421]
[1755332124404,0.9505,4448.0,4447.9,0.3266]
[1755332124602,1.4514,4448.0,4447.9,21.4711]
[1755332125595,3.2078,4448.1,4447.9,21.4711]
[1755332125798,1.4514,4448.0,4447.9,20.9556]
[1755332126300,1.4514,4448.0,4447.9,21.2192]
[1755332126501,1.4514,4448.0,4447.9,21.4711]
[1755332127403,1.4514,4448.0,4447.9,20.9556]
[1755332127800,1.4514,4448.0,4447.9,0.3266]
[1755332128001,0.8664,4447.6,4447.1,3.7233]
[1755332128207,0.585,4446.7,4446.6,0.8421]
[1755332128509,1.4514,4446.7,4446.6,62.2681]
[1755332128911,3.4472,4447.6,4447.2,0.3266]
[1755332129110,1.4514,4447.3,4447.2,0.3266]
[1755332129408,1.4514,4447.3,4447.2,20.9516]
[1755332129606,3.2078,4447.6,4447.2,21.4671]
[1755332129804,3.2078,4447.6,4447.5,0.3266]
[1755332130004,4.2937,4447.6,4447.5,21.4671]
[1755332130306,4.6592,4447.6,4447.5,21.4671]
[1755332130806,4.1583,4447.6,4447.5,21.4671]
[1755332131105,3.2078,4447.6,4447.5,21.4671]
[1755332132104,4.4198,4447.6,4447.5,0.8421]
[1755332132300,4.6592,4447.6,4447.5,21.4661]
[1755332132608,4.6592,4447.6,4447.5,20.9506]
[1755332133711,4.6592,4447.6,4447.5,61.7506]
[1755332133911,4.6592,4447.6,4447.5,40.8]
[1755332134210,0.585,4446.7,4446.6,1.4453]
[1755332134412,1.4514,4446.7,4446.6,22.0683]
[1755332135208,1.4514,4446.7,4446.6,42.2453]
[1755332135405,1.4514,4446.7,4446.6,20.9486]
[1755332135707,1.4514,4446.7,4446.4,3.2078]
[1755332135910,1.4514,4446.7,4446.0,0.44952]
[1755332135911,1.4514,4446.0,4445.9,1.4453]
[1755332136110,1.4514,4446.0,4445.9,22.0673]
[1755332136310,1.4514,4446.0,4445.9,62.8673]
[1755332136905,1.4514,4446.0,4445.9,0.1643]
[1755332137106,0.585,4445.8,4445.7,3.3721]
[1755332137307,3.2078,4446.6,4445.7,3.3721]
[1755332137308,0.2615,4446.2,4445.8,1.4453]
[1755332137503,1.2881,4446.3,4446.2,1.4453]
[1755332137708,1.4514,4446.3,4446.2,22.0673]
[1755332138007,3.2078,4446.6,4446.2,22.0673]
[1755332138210,0.7872,4446.4,4446.3,1.4453]
[1755332138410,0.4217,4446.4,4446.3,1.4453]
[1755332138612,1.4514,4446.4,4446.3,1.4453]
[1755332138910,1.4514,4446.4,4446.3,0.8421]
[1755332139110,1.4514,4446.4,4446.3,1.2034]
[1755332139310,1.4514,4446.4,4446.3,1.4453]
[1755332143212,3.2078,4446.6,4446.5,1.4453]
[1755332143413,3.2078,4446.6,4446.5,22.0673]
[1755332143613,0.3655,4447.1,4446.6,0.44946]
[1755332143814,0.9505,4447.1,4447.0,1.4453]
[1755332144017,0.9505,4447.1,4447.0,22.0663]
[1755332146417,1.4514,4447.1,4447.0,21.6404]
[1755332146717,0.8664,4447.0,4446.6,0.5155]
[1755332146915,0.585,4446.3,4446.2,1.2034]
[1755332147115,1.4514,4446.3,4446.2,21.8224]
[1755332147509,1.4514,4446.3,4446.2,22.0643]
[1755332152217,1.4514,4446.3,4446.2,1.4453]
[1755332152419,1.4514,4446.3,4446.2,22.0643]
[1755332152917,3.6007,4446.6,4446.5,1.4555]
[1755332153219,4.7058,4446.6,4446.5,22.0735]
[1755332153414,4.7058,4446.6,4446.5,20.618]
[1755332153919,4.7058,4446.6,4446.5,20.7903]